fUST/lending_fUST_20250302
["ID","MTS","AMOUNT","RATE_DAILY","PERIOD"]
[354980747,1740856153202,-1134.51,0.00024657,2]
[354980748,1740856153224,-500.0,0.00024657,2]
[354980749,1740856153246,-598.78718557,0.00024799,2]
[354980750,1740856153272,-151.0,0.000248,2]
[354980751,1740856153297,-3700.66565986,0.00024803,2]
[354980752,1740856153320,-201.451934,0.00024829,2]
[354980753,1740856153341,-598.78718556,0.00024868,2]
[354980754,1740856153362,-500.0,0.00024873,2]
[354980755,1740856153385,-500.0,0.00024873,2]
[354980756,1740856153410,-500.0,0.00024873,2]
[354980757,1740856153430,-500.0,0.00024873,2]
[354980758,1740856153452,-160.0,0.00024873,2]
[354980759,1740856153472,-500.0,0.00024873,2]
[354980760,1740856153493,-500.0,0.00024873,2]
[354980761,1740856153513,-500.0,0.00024873,2]
[354980762,1740856153534,-500.0,0.00024873,2]
[354980763,1740856153555,-500.0,0.00024873,2]
[354980764,1740856153576,-500.0,0.00024873,2]
[354980765,1740856153597,-500.0,0.00024873,2]
[354980766,1740856153617,-500.0,0.00024873,2]
[354980767,1740856153637,-500.0,0.00024873,2]
[354980768,1740856153656,-464.28565197,0.00024873,2]
[354980769,1740856153677,-970.11,0.00024888,3]
[354980770,1740856153698,-485.05,0.00024888,3]
[354980771,1740856153718,-242.53,0.00024888,3]
[354980772,1740856153738,-345.5605666,0.00024888,3]
[354980773,1740856155823,154.744732,0.00024826,14]
[354980774,1740856157139,-382.0294334,0.00024888,3]
[354980775,1740856157162,-152.08,0.00024889,2]
[354980776,1740856157184,-152.08,0.00024889,2]
[354980777,1740856157208,-152.08,0.00024889,2]
[354980778,1740856157230,-152.08,0.00024889,2]
[354980779,1740856157253,-152.08,0.00024889,2]
[354980780,1740856157276,-152.08,0.00024889,2]
[354980781,1740856157301,-500.0,0.00024894,2]
[354980782,1740856157324,-500.0,0.00024894,2]
[354980783,1740856157349,-500.0,0.00024894,2]
[354980784,1740856157373,-500.0,0.00024894,2]
[354980785,1740856157395,-500.0,0.00024894,2]
[354980786,1740856157421,-500.0,0.00024894,2]
[354980787,1740856157447,-500.0,0.00024894,2]
[354980788,1740856157470,-303.21014283,0.00024894,2]
[354980789,1740856157494,-500.0,0.00024894,2]
[354980790,1740856157517,-500.0,0.00024894,2]
[354980791,1740856157541,-500.0,0.00024894,2]
[354980792,1740856157566,-500.0,0.00024894,2]
[354980793,1740856157590,-500.0,0.00024894,2]
[354980794,1740856157615,-500.0,0.00024894,2]
[354980795,1740856157639,-500.0,0.00024894,2]
[354980796,1740856157663,-500.0,0.00024894,2]
[354980797,1740856157689,-500.0,0.00024894,2]
[354980798,1740856157713,-500.0,0.00024894,2]
[354980799,1740856157738,-500.0,0.00024894,2]
[354980800,1740856157762,-500.0,0.00024894,2]
[354980801,1740856157787,-500.0,0.00024894,2]
[354980802,1740856157811,-123.63391914,0.00024894,2]
[354980803,1740856160172,-376.36608086,0.00024894,2]
[354980804,1740856160197,-500.0,0.00024894,2]
[354980805,1740856160224,-500.0,0.00024894,2]
[354980806,1740856160249,-500.0,0.00024894,2]
[354980807,1740856160274,-500.0,0.00024894,2]
[354980808,1740856160299,-423.09182767,0.00024894,2]
[354980809,1740856160325,-500.0,0.00024894,2]
[354980810,1740856160697,-453.21290754,0.00024894,2]
[354980811,1740856160724,-500.0,0.00024894,2]
[354980812,1740856160748,-500.0,0.00024894,2]
[354980813,1740856160772,-500.0,0.00024894,2]
[354980814,1740856160795,-500.0,0.00024894,2]
[354980815,1740856160819,-500.0,0.00024894,2]
[354980816,1740856160843,-500.0,0.00024894,2]
[354980817,1740856160869,-500.0,0.00024894,2]
[354980818,1740856160893,-500.0,0.00024894,2]
[354980819,1740856160923,-500.0,0.00024894,2]
[354980820,1740856160948,-457.86519249,0.00024894,2]
[354980821,1740856160973,-500.0,0.00024894,2]
[354980822,1740856160997,-500.0,0.00024894,2]
[354980823,1740856161021,-500.0,0.00024894,2]
[354980824,1740856161044,-500.0,0.00024894,2]
[354980825,1740856161070,-500.0,0.00024894,2]
[354980826,1740856161093,-500.0,0.00024894,2]
[354980827,1740856161116,-500.0,0.00024894,2]
[354980828,1740856161141,-500.0,0.00024894,2]
[354980829,1740856161166,-500.0,0.00024894,2]
[354980830,1740856161190,-500.0,0.00024894,2]
[354980831,1740856161214,-500.0,0.00024894,2]
[354980832,1740856161241,-500.0,0.00024894,2]
[354980833,1740856161266,-500.0,0.00024894,2]
[354980834,1740856161291,-500.0,0.00024894,2]
[354980835,1740856161315,-500.0,0.00024894,2]
[354980836,1740856161339,-500.0,0.00024894,2]
[354980837,1740856161364,-500.0,0.00024894,2]
[354980838,1740856161389,-500.0,0.00024894,2]
[354980839,1740856161414,-500.0,0.00024894,2]
[354980840,1740856161437,-500.0,0.00024894,2]
[354980841,1740856161463,-500.0,0.00024894,2]
[354980842,1740856161488,-500.0,0.00024894,2]
[354980843,1740856161511,-500.0,0.00024894,2]
[354980844,1740856161535,-500.0,0.00024894,2]
[354980845,1740856161559,-500.0,0.00024894,2]
[354980846,1740856161582,-500.0,0.00024894,2]
[354980847,1740856161604,-374.92730518,0.00024894,2]
[354980848,1740856161630,-554.08,0.00024898,2]
[354980849,1740856161654,-554.08,0.00024898,2]
[354980850,1740856161675,-500.0,0.00024898,2]
[354980851,1740856161699,-439.24830662,0.00024898,2]
[354980852,1740856161721,-500.0,0.00024898,2]
[354980853,1740856161742,-500.0,0.00024898,2]
[354980854,1740856161765,-518.81279462,0.00024898,2]
[354980855,1740856161786,-974.16,0.00024898,2]
[354980856,1740856161808,-500.0,0.00024898,2]
[354980857,1740856161830,-500.0,0.00024898,2]
[354980858,1740856161851,-1468.12,0.00024898,2]
[354980859,1740856161873,-500.0,0.00024898,2]
[354980860,1740856161895,-500.0,0.00024898,2]
[354980861,1740856161921,-1776.03,0.00024898,2]
[354980862,1740856161943,-4379.09,0.00024898,2]
[354980863,1740856161966,-500.0,0.00024898,2]
[354980864,1740856161988,-500.0,0.00024898,2]
[354980865,1740856162009,-925.77,0.00024898,2]
[354980866,1740856162031,-616.35,0.00024898,2]
[354980867,1740856162056,-1338.29,0.00024898,2]
[354980868,1740856162080,-615.95050168,0.00024898,2]
[354980869,1740856162102,-500.0,0.00024898,2]
[354980870,1740856162126,-500.0,0.00024898,2]
[354980871,1740856162148,-500.0,0.00024898,2]
[354980872,1740856162171,-15430.04,0.00024898,2]
[354980873,1740856162193,-9682.22,0.00024898,2]
[354980874,1740856162216,-500.0,0.00024898,2]
[354980875,1740856162240,-500.0,0.00024898,2]
[354980876,1740856162262,-500.0,0.00024898,2]
[354980877,1740856162285,-7345.59,0.00024898,2]
[354980878,1740856162307,-500.0,0.00024898,2]
[354980879,1740856162330,-3289.57,0.00024898,2]
[354980880,1740856162353,-4569.17,0.00024898,2]
[354980881,1740856162376,-1040.62,0.00024898,5]
[354980882,1740856162399,-1863.2,0.00024898,2]
[354980883,1740856162423,-1495.27,0.00024898,2]
[354980884,1740856162446,-6804.97,0.00024898,2]
[354980885,1740856162468,-500.0,0.00024898,2]
[354980886,1740856162494,-1389.43,0.00024898,2]
[354980887,1740856162515,-500.0,0.00024899,2]
[354980888,1740856162536,-500.0,0.00024899,2]
[354980889,1740856162563,-500.0,0.00024899,2]
[354980890,1740856162586,-500.0,0.00024899,2]
[354980891,1740856162609,-500.0,0.00024899,2]
[354980892,1740856162632,-500.0,0.00024899,2]
[354980893,1740856162654,-500.0,0.00024899,2]
[354980894,1740856162676,-500.0,0.00024899,2]
[354980895,1740856162698,-960.94,0.00024899,2]
[354980896,1740856162720,-500.0,0.00024899,2]
[354980897,1740856162741,-500.0,0.00024899,2]
[354980898,1740856162762,-588.7,0.00024899,2]
[354980899,1740856162786,-500.0,0.00024899,2]
[354980900,1740856162811,-800.56,0.00024899,2]
[354980901,1740856162833,-500.0,0.00024899,2]
[354980902,1740856162854,-500.0,0.00024899,2]
[354980903,1740856162875,-785.35,0.00024899,2]
[354980904,1740856162897,-500.0,0.00024899,2]
[354980905,1740856162919,-500.0,0.00024899,2]
[354980906,1740856162942,-500.0,0.00024899,2]
[354980907,1740856162964,-501.87,0.00024899,2]
[354980908,1740856162987,-500.0,0.00024899,2]
[354980909,1740856163008,-500.0,0.00024899,2]
[354980910,1740856163031,-1483.81,0.00024899,2]
[354980911,1740856163053,-500.0,0.00024899,2]
[354980912,1740856163077,-500.0,0.00024899,2]
[354980913,1740856163100,-500.0,0.00024899,2]
[354980914,1740856163123,-500.0,0.00024899,2]
[354980915,1740856163144,-500.0,0.00024899,2]
[354980916,1740856163239,-500.0,0.00024899,2]
[354980917,1740856163263,-1607.46,0.00024899,2]
[354980918,1740856163284,-500.0,0.00024899,2]
[354980919,1740856163305,-500.0,0.00024899,2]
[354980920,1740856163327,-759.6,0.00024899,2]
[354980921,1740856163348,-500.0,0.00024899,2]
[354980922,1740856163369,-200.0,0.00024899,2]
[354980923,1740856163390,-500.0,0.00024899,2]
[354980924,1740856163415,-194.98695146,0.00024899,2]
[354980925,1740856163437,-500.0,0.00024899,2]
[354980926,1740856163457,-500.0,0.00024899,2]
[354980927,1740856163479,-500.28872659,0.00024899,2]
[354980928,1740856163500,-500.0,0.00024899,2]
[354980929,1740856163521,-464.74502592,0.00024899,2]
[354980930,1740856163541,-500.0,0.00024899,2]
[354980931,1740856163562,-1773.71,0.00024899,2]
[354980932,1740856163585,-500.0,0.00024899,2]
[354980933,1740856163606,-500.0,0.00024899,2]
[354980934,1740856163627,-500.0,0.00024899,2]
[354980935,1740856163647,-500.0,0.00024899,2]
[354980936,1740856163667,-500.0,0.00024899,2]
[354980937,1740856163689,-554.08,0.00024899,2]
[354980938,1740856163710,-554.08,0.00024899,2]
[354980939,1740856163731,-554.08,0.00024899,2]
[354980940,1740856163753,-554.08,0.00024899,2]
[354980941,1740856163774,-554.08,0.00024899,2]
[354980942,1740856163796,-500.0,0.00024899,2]
[354980943,1740856163818,-554.08,0.00024899,2]
[354980944,1740856163839,-554.08,0.00024899,2]
[354980945,1740856163860,-554.08,0.00024899,2]
[354980946,1740856163880,-554.08,0.00024899,2]
[354980947,1740856163900,-554.08,0.00024899,2]
[354980948,1740856163920,-554.08,0.00024899,2]
[354980949,1740856163942,-688.89,0.00024899,2]
[354980950,1740856163963,-500.0,0.00024899,2]
[354980951,1740856163984,-1081.9,0.00024899,2]
[354980952,1740856164005,-500.0,0.00024899,2]
[354980953,1740856164027,-500.0,0.00024899,2]
[354980954,1740856164048,-500.0,0.00024899,2]
[354980955,1740856164069,-545.17307275,0.00024899,2]
[354980956,1740856164091,-500.0,0.00024899,2]
[354980957,1740856164114,-500.0,0.00024899,2]
[354980958,1740856164135,-500.0,0.00024899,2]
[354980959,1740856164156,-500.0,0.00024899,2]
[354980960,1740856164178,-594.32,0.00024899,2]
[354980961,1740856164199,-503.73344001,0.00024899,2]
[354980962,1740856164221,-645.39,0.00024899,2]
[354980963,1740856164242,-500.0,0.00024899,2]
[354980964,1740856164264,-500.0,0.00024899,2]
[354980965,1740856164285,-500.0,0.00024899,2]
[354980966,1740856164307,-500.0,0.00024899,2]
[354980967,1740856164327,-500.0,0.00024899,2]
[354980968,1740856164349,-1181.76,0.00024899,2]
[354980969,1740856164370,-500.0,0.00024899,2]
[354980970,1740856164392,-266.4523777,0.00024899,2]
[354980971,1740856164417,-564.86,0.00024899,2]
[354980972,1740856164440,-500.0,0.00024899,2]
[354980973,1740856164461,-500.0,0.00024899,2]
[354980974,1740856164484,-500.0,0.00024899,2]
[354980975,1740856164505,-500.0,0.00024899,2]
[354980976,1740856164525,-500.0,0.00024899,2]
[354980977,1740856164546,-500.0,0.00024899,2]
[354980978,1740856164568,-1072.11,0.00024899,2]
[354980979,1740856164589,-500.0,0.00024899,2]
[354980980,1740856164611,-792.8,0.00024899,2]
[354980981,1740856164632,-500.0,0.00024899,2]
[354980982,1740856164653,-500.0,0.00024899,2]
[354980983,1740856164673,-500.0,0.00024899,2]
[354980984,1740856164694,-500.0,0.00024899,2]
[354980985,1740856164714,-500.0,0.00024899,2]
[354980986,1740856164734,-500.0,0.00024899,2]
[354980987,1740856164755,-1890.72,0.00024899,2]
[354980988,1740856164777,-3020.7,0.00024899,2]
[354980989,1740856164798,-449.46208928,0.00024899,2]
[354980990,1740856164819,-619.74,0.00024899,2]
[354980991,1740856164841,-500.0,0.00024899,2]
[354980992,1740856164862,-500.0,0.00024899,2]
[354980993,1740856164884,-5902.71,0.00024899,2]
[354980994,1740856164907,-500.0,0.00024899,2]
[354980995,1740856164929,-500.0,0.00024899,2]
[354980996,1740856164950,-1316.52,0.00024899,2]
[354980997,1740856164972,-500.0,0.00024899,2]
[354980998,1740856164993,-10483.21,0.00024899,2]
[354980999,1740856165014,-702.24,0.00024899,2]
[354981000,1740856165036,-500.0,0.00024899,2]
[354981001,1740856165056,-500.0,0.00024899,2]
[354981002,1740856165078,-848.95,0.00024899,2]
[354981003,1740856165099,-500.0,0.00024899,2]
[354981004,1740856165121,-500.0,0.00024899,2]
[354981005,1740856165143,-500.0,0.00024899,2]
[354981006,1740856165164,-500.0,0.00024899,2]
[354981007,1740856165186,-1276.83,0.00024899,2]
[354981008,1740856165208,-3238.64,0.00024899,2]
[354981009,1740856165231,-500.0,0.00024899,2]
[354981010,1740856165252,-500.0,0.00024899,2]
[354981011,1740856165273,-506.5410076,0.00024899,2]
[354981012,1740856165294,-3578.13,0.00024899,2]
[354981013,1740856165317,-5957.99,0.00024899,2]
[354981014,1740856165339,-500.0,0.00024899,2]
[354981015,1740856165360,-500.0,0.00024899,2]
[354981016,1740856165382,-925.95,0.00024899,2]
[354981017,1740856165407,-525.22,0.00024899,2]
[354981018,1740856165429,-500.0,0.00024899,2]
[354981019,1740856165450,-500.0,0.00024899,2]
[354981020,1740856165473,-500.0,0.00024899,2]
[354981021,1740856165494,-557.74160315,0.00024899,2]
[354981022,1740856165515,-500.0,0.00024899,2]
[354981023,1740856165536,-500.0,0.00024899,2]
[354981024,1740856165556,-500.0,0.00024899,2]
[354981025,1740856165578,-500.0,0.00024899,2]
[354981026,1740856165599,-500.0,0.00024899,2]
[354981027,1740856165621,-500.0,0.00024899,2]
[354981028,1740856165642,-500.0,0.00024899,2]
[354981029,1740856165664,-500.0,0.00024899,2]
[354981030,1740856165685,-500.0,0.00024899,2]
[354981031,1740856165706,-500.0,0.00024899,2]
[354981032,1740856165728,-500.0,0.00024899,2]
[354981033,1740856165750,-500.0,0.00024899,2]
[354981034,1740856165772,-375.71,0.00024899,2]
[354981035,1740856165794,-3493.59,0.00024899,2]
[354981036,1740856165816,-501.47775902,0.00024899,2]
[354981037,1740856165839,-500.0,0.00024899,2]
[354981038,1740856165860,-500.0,0.00024899,2]
[354981039,1740856165882,-500.0,0.00024899,2]
[354981040,1740856165904,-594.37,0.00024899,2]
[354981041,1740856165927,-2069.48,0.00024899,2]
[354981042,1740856165948,-942.22,0.00024899,2]
[354981043,1740856165971,-500.0,0.00024899,2]
[354981044,1740856165993,-500.0,0.00024899,2]
[354981045,1740856166015,-500.0,0.00024899,2]
[354981046,1740856166037,-1960.08,0.00024899,2]
[354981047,1740856166059,-500.0,0.00024899,2]
[354981048,1740856166082,-2051.77,0.00024899,2]
[354981049,1740856166104,-500.0,0.00024899,2]
[354981050,1740856166126,-500.0,0.00024899,2]
[354981051,1740856166147,-500.0,0.00024899,2]
[354981052,1740856166172,-500.0,0.00024899,2]
[354981053,1740856166195,-500.0,0.00024899,2]
[354981054,1740856166215,-517.81555958,0.00024899,2]
[354981055,1740856166236,-582.73,0.00024899,2]
[354981056,1740856166257,-500.0,0.00024899,2]
[354981057,1740856166278,-500.0,0.00024899,2]
[354981058,1740856166300,-500.0,0.00024899,2]
[354981059,1740856166322,-502.5,0.00024899,2]
[354981060,1740856166343,-563.17698584,0.00024899,2]
[354981061,1740856166366,-1986.76,0.00024899,2]
[354981062,1740856166388,-500.0,0.00024899,2]
[354981063,1740856166414,-500.0,0.00024899,2]
[354981064,1740856166436,-1432.7,0.00024899,2]
[354981065,1740856166458,-500.0,0.00024899,2]
[354981066,1740856166484,-500.0,0.00024899,2]
[354981067,1740856166506,-83772.24499515,0.00024899,2]
[354981068,1740856167570,-490.0,0.00024898,2]
[354981069,1740856172073,-21.9,0.00024898,2]
[354981070,1740856172096,-500.0,0.00024898,2]
[354981071,1740856172119,-5656.76,0.00024898,2]
[354981072,1740856172143,-22159.54533995,0.00024899,2]
[354981091,1740856232613,-1099.24785949,0.00022799,2]
[354981093,1740856232623,-2189.08408549,0.00024799,2]
[354981095,1740856232633,-500.0,0.00024873,2]
[354981097,1740856232643,-500.0,0.00024873,2]
[354981099,1740856232653,-500.0,0.00024873,2]
[354981101,1740856232663,-500.0,0.00024873,2]
[354981103,1740856232672,-300.0,0.00024897,2]
[354981105,1740856232682,-964.63,0.00024898,2]
[354981107,1740856232691,-3103.69,0.00024898,2]
[354981109,1740856232701,-986.66,0.00024898,2]
[354981111,1740856232711,-10046.41,0.00024898,2]
[354981112,1740856232720,-500.0,0.00024898,2]
[354981113,1740856232729,-503.34,0.00024898,2]
[354981114,1740856232739,-134.23449936,0.00024898,2]
[354981115,1740856232810,-365.76550064,0.00024898,2]
[354981116,1740856232820,-314.36656128,0.00024898,2]
[354981150,1740856238179,-565.89,0.00024889,3]
[354981152,1740856238189,-3114.67343872,0.00024898,2]
[354981154,1740856238199,-500.0,0.00024898,2]
[354981156,1740856238210,-500.0,0.00024898,2]
[354981157,1740856238220,-500.0,0.00024898,2]
[354981159,1740856238230,-500.0,0.00024898,2]
[354981161,1740856238240,-1406.95,0.00024898,2]
[354981163,1740856238250,-500.0,0.00024898,2]
[354981165,1740856238260,-569.6,0.00024898,2]
[354981167,1740856238270,-503.14924684,0.00024898,2]
[354981169,1740856238279,-500.0,0.00024898,2]
[354981172,1740856238290,-435.89909196,0.00024898,2]
[354981175,1740856238300,-500.0,0.00024898,2]
[354981177,1740856238310,-500.0,0.00024898,2]
[354981180,1740856238321,-500.0,0.00024898,2]
[354981182,1740856238331,-500.0,0.00024898,2]
[354981184,1740856238341,-500.0,0.00024898,2]
[354981186,1740856238351,-494.80143417,0.00024898,2]
[354981188,1740856238362,-500.0,0.00024898,2]
[354981190,1740856238371,-500.0,0.00024898,2]
[354981192,1740856238381,-500.0,0.00024898,2]
[354981194,1740856238391,-500.0,0.00024898,2]
[354981196,1740856238401,-500.0,0.00024898,2]
[354981198,1740856238410,-500.0,0.00024898,2]
[354981200,1740856238420,-500.0,0.00024898,2]
[354981202,1740856238435,-500.0,0.00024898,2]
[354981204,1740856238445,-299.06227377,0.00024898,2]
[354981206,1740856238455,-500.0,0.00024898,2]
[354981208,1740856238466,-500.0,0.00024898,2]
[354981210,1740856238476,-500.0,0.00024898,2]
[354981212,1740856238486,-500.0,0.00024898,2]
[354981214,1740856238495,-500.0,0.00024898,2]
[354981216,1740856238507,-500.0,0.00024898,2]
[354981218,1740856238517,-500.0,0.00024898,2]
[354981220,1740856238526,-500.0,0.00024898,2]
[354981222,1740856238536,-79550.2996649,0.00024899,2]
[354981224,1740856238546,-500.0,0.00024899,2]
[354981226,1740856238556,-500.0,0.00024899,2]
[354981228,1740856238566,-500.0,0.00024899,2]
[354981230,1740856238576,-623.35,0.00024899,2]
[354981232,1740856238585,-500.0,0.00024899,2]
[354981234,1740856238595,-500.0,0.00024899,2]
[354981236,1740856238605,-878.29,0.00024899,2]
[354981238,1740856238615,-1836.81,0.00024899,2]
[354981240,1740856238625,-500.0,0.00024899,2]
[354981242,1740856238637,-517.22,0.00024899,2]
[354981244,1740856238647,-2028.54,0.00024899,2]
[354981246,1740856238658,-755.28,0.00024899,2]
[354981248,1740856238667,-500.0,0.00024899,2]
[354981250,1740856238677,-3380.82,0.00024899,2]
[354981252,1740856238686,-500.0,0.00024899,2]
[354981254,1740856238697,-500.0,0.00024899,2]
[354981256,1740856238706,-500.0,0.00024899,2]
[354981258,1740856238716,-1111.42,0.00024899,2]
[354981260,1740856238726,-8679.19,0.00024899,2]
[354981261,1740856238735,-1107.31,0.00024899,2]
[354981263,1740856238745,-502.06,0.00024899,2]
[354981265,1740856238755,-500.0,0.00024899,2]
[354981267,1740856238765,-500.0,0.00024899,2]
[354981269,1740856238774,-500.0,0.00024899,2]
[354981271,1740856238784,-1931.12,0.00024899,2]
[354981273,1740856238793,-500.0,0.00024899,2]
[354981275,1740856238802,-1521.15,0.00024899,2]
[354981277,1740856238812,-2396.33,0.00024899,2]
[354981279,1740856238822,-500.0,0.00024899,2]
[354981281,1740856238831,-761.77,0.00024899,2]
[354981283,1740856238841,-3644.05,0.00024899,2]
[354981285,1740856238851,-500.0,0.00024899,2]
[354981287,1740856238861,-500.0,0.00024899,2]
[354981289,1740856238870,-596.95,0.00024899,2]
[354981290,1740856238879,-500.0,0.00024899,2]
[354981292,1740856238890,-1115.74,0.00024899,2]
[354981294,1740856238899,-500.0,0.00024899,2]
[354981296,1740856238909,-509.14,0.00024899,2]
[354981298,1740856238918,-1414.0,0.00024899,2]
[354981300,1740856238927,-599.09500389,0.00024899,2]
[354981302,1740856238937,-500.0,0.00024899,2]
[354981304,1740856238947,-500.0,0.00024899,2]
[354981306,1740856238957,-500.0,0.00024899,2]
[354981308,1740856238966,-500.0,0.00024899,2]
[354981310,1740856238976,-521.71245927,0.00024899,2]
[354981312,1740856238985,-500.0,0.00024899,2]
[354981314,1740856238994,-1264.97,0.00024899,2]
[354981316,1740856239004,-500.0,0.00024899,2]
[354981318,1740856239014,-1038.26,0.00024899,2]
[354981320,1740856239023,-500.0,0.00024899,2]
[354981322,1740856239033,-500.0,0.00024899,2]
[354981324,1740856239043,-646.95,0.00024899,2]
[354981326,1740856239053,-34072.75,0.00024899,2]
[354981328,1740856239062,-500.0,0.00024899,2]
[354981330,1740856239072,-525.3,0.00024899,2]
[354981332,1740856239082,-500.0,0.00024899,2]
[354981334,1740856239092,-500.0,0.00024899,2]
[354981336,1740856239102,-500.0,0.00024899,2]
[354981338,1740856239112,-500.0,0.00024899,2]
[354981340,1740856239122,-1539.21,0.00024899,2]
[354981342,1740856239132,-500.0,0.00024899,2]
[354981344,1740856239141,-500.0,0.00024899,2]
[354981346,1740856239151,-740.17,0.00024899,2]
[354981347,1740856239161,-500.0,0.00024899,2]
[354981349,1740856239170,-152.58103398,0.00024899,2]
[354981351,1740856239180,-500.0,0.00024899,2]
[354981353,1740856239190,-500.0,0.00024899,2]
[354981355,1740856239201,-2313.21,0.00024899,2]
[354981357,1740856239211,-500.0,0.00024899,2]
[354981359,1740856239221,-642.22051727,0.00024899,2]
[354981361,1740856239231,-346.17023805,0.00024899,2]
[354981363,1740856239241,-1003.17,0.00024899,2]
[354981365,1740856239251,-500.0,0.00024899,2]
[354981367,1740856239262,-500.0,0.00024899,2]
[354981369,1740856239271,-500.0,0.00024899,2]
[354981371,1740856239281,-507.26556762,0.00024899,2]
[354981373,1740856239291,-719.94,0.00024899,2]
[354981374,1740856239302,-500.0,0.00024899,2]
[354981376,1740856239312,-592.94723038,0.00024899,2]
[354981378,1740856239322,-500.0,0.00024899,2]
[354981380,1740856239332,-665.91,0.00024899,2]
[354981382,1740856239342,-500.0,0.00024899,2]
[354981384,1740856239351,-500.0,0.00024899,2]
[354981386,1740856239361,-529.53258417,0.00024899,2]
[354981388,1740856239371,-500.0,0.00024899,2]
[354981390,1740856239381,-500.0,0.00024899,2]
[354981392,1740856239393,-500.0,0.00024899,2]
[354981394,1740856239403,-507.68703963,0.00024899,2]
[354981396,1740856239413,-500.0,0.00024899,2]
[354981398,1740856239424,-500.0,0.00024899,2]
[354981400,1740856239438,-1850.39,0.00024899,2]
[354981402,1740856239448,-500.0,0.00024899,2]
[354981404,1740856239457,-500.0,0.00024899,2]
[354981406,1740856239471,-500.0,0.00024899,2]
[354981408,1740856239481,-1357.68,0.00024899,2]
[354981410,1740856239491,-500.0,0.00024899,2]
[354981412,1740856239501,-500.0,0.00024899,2]
[354981414,1740856239511,-500.0,0.00024899,2]
[354981416,1740856239522,-500.0,0.00024899,2]
[354981418,1740856239532,-573.18,0.00024899,2]
[354981420,1740856239542,-500.0,0.00024899,2]
[354981422,1740856239552,-500.0,0.00024899,2]
[354981424,1740856239561,-500.0,0.00024899,2]
[354981426,1740856239571,-1183.53,0.00024899,2]
[354981428,1740856239581,-500.0,0.00024899,2]
[354981430,1740856239592,-500.0,0.00024899,2]
[354981432,1740856239601,-500.0,0.00024899,2]
[354981434,1740856239612,-500.0,0.00024899,2]
[354981436,1740856239621,-500.0,0.00024899,2]
[354981438,1740856239631,-500.0,0.00024899,2]
[354981439,1740856239642,-154.78528346,0.00024899,2]
[354981442,1740856239652,-500.0,0.00024899,2]
[354981444,1740856239662,-500.0,0.00024899,2]
[354981446,1740856239671,-500.0,0.00024899,2]
[354981448,1740856239681,-500.0,0.00024899,2]
[354981450,1740856239691,-500.0,0.00024899,2]
[354981452,1740856239700,-1181.9,0.00024899,2]
[354981454,1740856239710,-500.0,0.00024899,2]
[354981456,1740856239720,-5709.74,0.00024899,2]
[354981458,1740856239730,-807.84,0.00024899,2]
[354981460,1740856239739,-500.0,0.00024899,2]
[354981462,1740856239749,-500.0,0.00024899,2]